bitfinex-derivatives/quotes_SOLF0:USTF0_20260304
["timestamp","ask_amount","ask_price","bid_price","bid_amount"]
[1772639048420,20.9492726,92.02,91.932,20.56967506]
[1772639049124,20.9492726,92.009,91.932,20.56967506]
[1772639049823,9.78,92.004,91.936,9.788]
[1772639050018,20.9492726,92.003,91.936,9.788]
[1772639050322,9.782,91.992,91.932,20.56967506]
[1772639050522,20.9492726,91.989,91.911,20.56967506]
[1772639050924,20.9492726,92.011,91.911,20.56967506]
[1772639051324,7.28024103,92.03,91.955,20.56967506]
[1772639051623,20.9492726,92.03,91.955,20.56967506]
[1772639051818,20.9492726,92.03,91.969,9.784]
[1772639052720,7.28024103,92.05,91.969,20.56967506]
[1772639052916,7.28024103,92.05,91.96,7.28024103]
[1772639052917,9.779,92.02,91.931,20.56967506]
[1772639053123,20.9492726,92.029,91.964,9.785]
[1772639053316,20.9492726,92.029,91.931,20.56967506]
[1772639053521,20.9492726,92.073,91.971,20.56967506]
[1772639053727,20.9492726,92.099,92.016,20.56967506]
[1772639054519,7.28024103,92.09,92.016,20.56967506]
[1772639054922,9.772,92.086,92.016,30.34867506]
[1772639055230,20.9492726,92.089,92.016,20.56967506]
[1772639055925,20.9492726,92.084,92.016,20.56967506]
[1772639056526,20.9492726,92.084,92.018,9.779]
[1772639056924,20.9492726,92.084,92.016,20.56967506]
[1772639057226,20.9492726,92.084,92.017,9.779]
[1772639058025,20.9492726,92.084,92.027,9.778]
[1772639058320,20.9492726,92.084,92.016,20.56967506]
[1772639058629,20.9492726,92.084,92.018,19.59248355]
[1772639059233,30.57767696,92.083,92.018,19.59248355]
[1772639059432,20.80567696,92.082,91.991,19.59248355]
[1772639060132,20.80567696,92.069,92.003,9.78]
[1772639061528,9.774,92.067,92.003,9.78]
[1772639061935,20.80567696,92.064,92.003,9.78]
[1772639062335,20.80567696,92.064,92.011,9.78]
[1772639062632,20.80567696,92.064,91.991,19.59248355]
[1772639062830,20.80567696,92.084,91.991,19.59248355]
[1772639064434,30.57767696,92.084,92.019,9.779]
[1772639064634,20.39634492,92.083,92.019,9.779]
[1772639065831,20.39634492,92.083,92.028,9.778]
[1772639066634,20.39634492,92.083,92.019,9.779]
[1772639066835,20.39634492,92.083,92.01,21.4982869]
[1772639067136,20.39634492,92.061,91.99,21.4982869]
[1772639067335,20.39634492,92.049,91.99,21.4982869]
[1772639068038,20.39634492,92.047,91.972,21.4982869]
[1772639068743,20.39634492,92.047,91.989,9.782]
[1772639069044,20.39634492,92.047,91.99,9.782]
[1772639069238,20.39634492,92.047,91.972,21.4982869]
[1772639071240,9.775,92.057,92.005,9.78]
[1772639071640,9.775,92.057,91.996,9.781]
[1772639072040,30.17234492,92.049,91.974,21.4982869]
[1772639072243,20.39634492,92.048,91.974,21.4982869]
[1772639072845,20.39634492,92.048,91.995,9.781]
[1772639073446,20.39634492,92.048,92.003,9.781]
[1772639073642,20.39634492,92.068,91.993,21.4982869]
[1772639073950,20.39634492,92.089,91.993,21.4982869]
[1772639074243,20.39634492,92.089,91.992,21.4982869]
[1772639074446,20.39634492,92.069,91.992,21.4982869]
[1772639075243,20.39634492,92.069,92.005,9.78]
[1772639075445,20.39634492,92.069,91.992,21.4982869]
[1772639076552,20.39634492,92.11,91.992,21.4982869]
[1772639076745,20.39634492,92.089,91.992,21.4982869]
[1772639077551,9.772,92.079,92.023,9.778]
[1772639078152,20.39634492,92.089,92.015,9.779]
[1772639078550,9.773,92.074,92.023,9.778]
[1772639078951,20.39634492,92.089,92.023,9.778]
[1772639079252,9.773,92.076,92.023,9.778]
[1772639079442,9.773,92.076,92.012,21.4982869]
[1772639079443,9.773,92.076,92.03,9.778]
[1772639079845,9.773,92.076,92.012,21.4982869]
[1772639079846,9.773,92.076,92.022,9.778]
[1772639080249,9.772,92.085,92.012,21.4982869]
[1772639080752,30.16834492,92.085,92.012,21.4982869]
[1772639081349,9.773,92.078,92.029,9.778]
[1772639082351,20.39634492,92.075,92.029,9.778]
[1772639082652,20.39634492,92.075,92.022,9.779]
[1772639083547,9.773,92.073,92.022,9.779]
[1772639083947,20.39634492,92.072,92.022,9.779]
[1772639084545,20.39634492,92.07,92.014,9.779]
[1772639084850,20.39634492,92.07,91.99,21.4982869]
[1772639085951,186.05914625,92.16,91.99,21.4982869]
[1772639085952,20.39634492,92.057,91.99,21.4982869]
[1772639086753,7.28410638,92.1,91.971,21.4982869]
[1772639086754,20.39634492,92.039,91.971,21.4982869]
[1772639087856,20.39634492,92.037,91.971,21.4982869]
[1772639088451,20.39634492,92.037,91.975,9.783]
[1772639088757,20.39634492,92.037,91.971,21.4982869]
[1772639088959,20.43458264,92.03,91.971,21.4982869]
[1772639089855,9.778,92.023,91.971,21.4982869]
[1772639090059,20.43458264,92.022,91.952,20.39631662]
[1772639090261,20.43458264,92.022,91.965,9.785]
[1772639090858,20.43458264,92.059,91.974,20.39631662]
[1772639091663,20.43458264,92.039,91.956,20.39631662]
[1772639092358,9.778,92.032,91.97,9.784]
[1772639092756,9.778,92.032,91.956,20.39631662]
[1772639094365,20.43458264,92.039,91.977,20.39631662]
[1772639094558,20.43458264,92.059,91.977,20.39631662]
[1772639095164,30.20958264,92.057,91.999,9.781]
[1772639095759,9.774,92.066,91.995,20.39631662]
[1772639095963,7.28410638,92.07,91.995,20.39631662]
[1772639096363,7.28410638,92.07,92.014,9.779]
[1772639096364,9.774,92.069,92.014,9.779]
[1772639096960,9.774,92.062,92.014,9.779]
[1772639097860,20.43458264,92.069,92.014,9.779]
[1772639098069,20.43458264,92.069,92.006,9.78]
[1772639099466,9.775,92.051,92.006,9.78]
[1772639099669,20.43458264,92.069,92.006,9.78]
[1772639099865,20.43458264,92.069,92.014,9.779]
[1772639100061,9.774,92.061,92.014,9.779]
[1772639100264,20.43458264,92.088,92.001,20.39631662]
[1772639100465,20.43458264,92.109,92.031,20.39631662]
[1772639101061,20.43458264,92.098,92.01,9.60256381]
[1772639101261,20.43458264,92.089,92.01,20.39631662]
[1772639101565,20.43458264,92.109,92.066,9.774]
[1772639101758,20.43458264,92.109,92.043,20.39631662]
[1772639101962,20.43458264,92.109,92.019,20.39631662]
[1772639102163,7.28410638,92.09,92.019,20.39631662]
[1772639102364,9.772,92.085,92.027,9.778]
[1772639102569,27.71868902,92.09,91.998,20.39631662]
[1772639102570,20.43458264,92.069,91.998,20.39631662]
[1772639102765,20.43458264,92.069,91.98,7.28410638]
[1772639102766,9.776,92.043,91.982,9.783]
[1772639103062,20.43458264,92.029,91.961,20.39631662]
[1772639103369,9.78,92.008,91.948,9.786]
[1772639103570,9.78,92.008,91.937,20.39631662]
[1772639103571,20.43458264,92.009,91.937,20.39631662]
[1772639103871,20.43458264,91.989,91.915,20.39631662]
[1772639104469,20.43458264,91.989,91.926,20.39631662]
[1772639104671,9.78,92.004,91.926,20.39631662]
[1772639104960,7.28410638,92.03,91.926,20.39631662]
[1772639105171,20.43458264,92.056,91.961,20.39631662]
[1772639105472,7.28410638,92.07,91.981,20.39631662]
[1772639105768,9.773,92.071,92.0,20.39631662]
[1772639106272,9.774,92.061,92.0,20.39631662]
[1772639107272,9.774,92.061,91.979,20.39631662]
[1772639107273,9.776,92.05,91.979,20.39631662]
[1772639107962,9.777,92.038,91.979,20.39631662]
[1772639108160,7.28410638,92.05,91.979,20.39631662]
[1772639108371,7.28410638,92.05,91.96,7.28410638]
[1772639108372,20.43458264,92.085,91.981,20.39631662]
[1772639108562,9.772,92.083,92.016,9.779]
[1772639108769,20.43458264,92.085,92.016,9.779]
[1772639108971,20.43458264,92.085,92.011,20.39631662]
[1772639109171,9.772,92.083,92.015,9.779]
[1772639109369,9.772,92.083,92.011,20.39631662]
[1772639109568,20.43458264,92.085,92.011,20.39631662]
[1772639109767,20.43458264,92.085,92.013,20.39631662]
[1772639110371,9.772,92.083,92.015,9.779]
[1772639110665,27.71868902,92.11,92.016,20.39631662]
[1772639110971,9.77,92.102,92.042,9.776]
[1772639111164,20.43458264,92.089,92.021,20.39631662]
[1772639111467,20.43458264,92.111,92.048,9.776]
[1772639111666,20.43458264,92.111,92.048,20.39631662]
[1772639111866,20.43458264,92.111,92.021,20.39631662]
[1772639112069,7.28410638,92.1,92.021,20.39631662]
[1772639112273,20.43458264,92.09,92.021,20.39631662]
[1772639112864,20.43458264,92.114,92.033,20.39631662]
[1772639113972,20.43458264,92.109,92.033,20.39631662]
[1772639114165,20.43458264,92.089,92.009,20.39631662]
[1772639114772,9.773,92.076,92.018,9.779]
[1772639114969,9.773,92.076,92.009,20.39631662]
[1772639115172,20.43458264,92.069,91.989,20.39631662]
[1772639115576,9.774,92.063,92.0,9.781]
[1772639115773,20.43458264,92.069,92.001,20.39631662]
[1772639117572,9.774,92.067,92.007,9.78]
[1772639117972,9.774,92.067,92.001,20.39631662]
[1772639118680,9.772,92.079,92.015,9.779]
[1772639118978,20.14955079,92.089,92.001,20.39631662]
[1772639119376,20.14955079,92.069,92.001,20.39631662]
[1772639119678,20.14955079,92.089,92.001,20.39631662]
[1772639120675,20.14955079,92.111,92.031,20.54678469]
[1772639120881,20.14955079,92.111,92.041,20.54678469]
[1772639122276,13.46934716,92.158,92.01,17.03496423]
[1772639122277,20.14955079,92.109,92.01,17.03496423]
[1772639122478,20.14955079,92.109,92.047,9.776]
[1772639122679,20.14955079,92.129,92.048,20.54678469]
[1772639123676,20.14955079,92.129,92.051,21.30312977]
[1772639124077,20.14955079,92.129,92.054,9.775]
[1772639124285,20.65654421,92.119,92.031,21.30312977]
[1772639125481,20.65654421,92.153,92.041,21.30312977]
[1772639125676,20.65654421,92.129,92.041,21.30312977]
[1772639125885,9.768,92.117,92.058,9.775]
[1772639126279,20.65654421,92.149,92.061,21.30312977]
[1772639126489,20.65654421,92.148,92.077,9.773]
[1772639126780,20.65654421,92.139,92.061,21.30312977]
[1772639126976,20.65654421,92.119,92.041,21.30312977]
[1772639127879,20.65654421,92.119,92.053,21.30312977]
[1772639128281,20.65654421,92.119,92.033,21.30312977]
[1772639128479,7.28410638,92.1,92.033,21.30312977]
[1772639129389,20.65654421,92.097,92.001,21.30312977]
[1772639129682,9.768,92.117,92.05,21.30312977]
[1772639129888,27.94065059,92.13,92.05,21.30312977]
[1772639130279,20.65654421,92.128,92.05,21.30312977]
[1772639130881,20.65654421,92.119,92.05,21.30312977]
[1772639131683,20.65654421,92.119,92.053,21.30312977]
[1772639132683,20.65654421,92.108,92.033,21.30312977]
[1772639132880,7.28410638,92.09,92.033,21.30312977]
[1772639133182,9.773,92.076,92.017,9.779]
[1772639133495,7.28410638,92.1,92.001,21.30312977]
[1772639133689,7.28410638,92.12,92.021,21.30312977]
[1772639133884,20.65654421,92.129,92.061,21.30312977]
[1772639134592,9.766,92.137,92.068,21.30312977]
[1772639134986,9.765,92.147,92.08,9.772]
[1772639135288,20.65654421,92.151,92.08,9.772]
[1772639135492,20.65654421,92.138,92.07,9.773]
[1772639135692,20.65654421,92.138,92.041,21.30312977]
[1772639135893,20.65654421,92.129,92.041,21.30312977]
[1772639136094,9.768,92.123,92.041,21.30312977]
[1772639136291,20.65654421,92.129,92.041,21.30312977]
[1772639136487,20.65654421,92.122,92.041,21.30312977]
[1772639137292,7.28410638,92.13,92.041,21.30312977]
[1772639137488,20.65654421,92.129,92.041,21.30312977]
[1772639137894,9.77,92.104,92.046,9.776]
[1772639138096,9.77,92.104,92.041,21.30312977]
[1772639138294,20.65654421,92.129,92.041,21.30312977]
[1772639138597,9.769,92.115,92.051,21.30312977]
[1772639139191,9.768,92.124,92.051,21.30312977]
[1772639140297,9.769,92.117,92.059,9.774]
[1772639141201,30.42454421,92.126,92.067,9.774]
[1772639141396,20.65654421,92.126,92.067,21.30312977]
[1772639141592,20.65654421,92.149,92.067,21.30312977]
[1772639141794,9.765,92.147,92.089,9.771]
[1772639141993,20.65654421,92.169,92.085,21.30312977]
[1772639142398,20.65654421,92.169,92.107,21.30312977]
[1772639142595,9.762,92.176,92.107,21.30312977]
[1772639143000,20.65654421,92.224,92.121,21.30312977]
[1772639143303,20.65654421,92.199,92.121,21.30312977]
[1772639143503,20.65654421,92.199,92.129,9.767]
[1772639143706,20.65654421,92.199,92.121,21.30312977]
[1772639144207,9.76,92.198,92.127,9.767]
[1772639144503,9.76,92.198,92.121,21.30312977]
[1772639144504,9.76,92.198,92.128,21.30312977]
[1772639145102,20.65654421,92.199,92.135,9.766]
[1772639145502,20.65654421,92.169,92.094,21.30312977]
[1772639145701,7.26431735,92.17,92.094,21.30312977]
[1772639146000,20.65654421,92.169,92.094,21.30312977]
[1772639146408,7.26431735,92.18,92.105,21.30312977]
[1772639146904,20.65654421,92.191,92.124,21.30312977]
[1772639147104,7.26431735,92.2,92.124,21.30312977]
[1772639147498,20.65654421,92.211,92.124,21.30312977]
[1772639147698,7.26431735,92.22,92.124,21.30312977]
[1772639148006,7.26431735,92.24,92.141,21.30312977]
[1772639148204,7.26431735,92.24,92.169,21.30312977]
[1772639148402,20.60173786,92.239,92.169,21.30312977]
[1772639148600,20.60173786,92.219,92.157,9.764]
[1772639148800,20.60173786,92.219,92.148,20.89534382]
[1772639149201,20.60173786,92.219,92.149,9.765]
[1772639149509,7.26431735,92.2,92.148,20.89534382]
[1772639149704,7.26431735,92.2,92.056,19.49596106]
[1772639149705,7.26431735,92.18,92.101,20.89534382]
[1772639150204,7.26431735,92.18,92.107,9.769]
[1772639150205,9.762,92.177,92.107,9.769]
[1772639150402,20.60173786,92.179,92.107,9.769]
[1772639150602,7.26431735,92.16,92.101,20.89534382]
[1772639150804,7.26431735,92.14,92.074,9.773]
[1772639151008,7.26431735,92.14,92.071,20.89534382]
[1772639151205,20.60173786,92.139,92.071,20.89534382]
[1772639151509,7.26431735,92.12,92.072,9.773]
[1772639151805,7.26431735,92.12,92.048,20.89534382]
[1772639152105,7.26431735,92.1,92.04,9.777]
[1772639152303,20.60173786,92.119,92.024,20.89534382]
[1772639152508,20.60173786,92.119,92.067,9.774]
[1772639152708,27.86605521,92.14,92.067,9.774]
[1772639152903,27.86605521,92.14,92.05,20.89534382]
[1772639153098,27.86605521,92.14,92.076,9.773]
[1772639153299,7.26431735,92.16,92.077,20.89534382]
[1772639153905,7.26431735,92.14,92.077,20.89534382]
[1772639154307,7.26431735,92.12,92.041,20.89534382]
[1772639155005,7.26431735,92.12,92.065,9.774]
[1772639155206,7.26431735,92.12,92.066,20.89534382]
[1772639156298,7.26431735,92.16,92.066,20.89534382]
[1772639156299,7.26431735,92.14,92.066,20.89534382]
[1772639157399,7.26431735,92.14,92.078,9.773]
[1772639157803,7.26431735,92.14,92.066,20.89534382]
[1772639158712,7.26431735,92.16,92.071,20.89534382]
[1772639158906,7.26431735,92.16,92.108,9.769]
[1772639159307,7.26431735,92.16,92.102,20.89534382]
[1772639159904,7.26431735,92.16,92.049,9.70793997]
[1772639159905,7.26431735,92.16,92.081,20.89534382]
[1772639160511,7.26431735,92.16,92.106,9.77]
[1772639160707,20.60173786,92.184,92.07,7.26431735]
[1772639160708,7.26431735,92.18,92.101,20.89534382]
[1772639161201,9.762,92.179,92.101,20.89534382]
[1772639161405,7.26431735,92.16,92.101,20.89534382]
[1772639162106,20.60173786,92.179,92.101,20.89534382]
[1772639162413,7.26431735,92.2,92.122,20.89534382]
[1772639162609,7.26431735,92.22,92.13,7.26431735]
[1772639162911,7.26431735,92.22,92.154,20.89534382]
[1772639163407,7.26431735,92.22,92.168,9.763]
[1772639163704,7.26431735,92.2,92.111,20.89534382]
[1772639164011,7.26431735,92.2,92.138,20.89534382]
[1772639164411,20.60173786,92.199,92.111,20.89534382]
[1772639164804,20.60173786,92.199,92.137,9.766]
[1772639165409,20.60173786,92.199,92.111,20.89534382]
[1772639165410,7.26431735,92.18,92.111,20.89534382]
[1772639165608,27.86605521,92.18,92.111,20.89534382]
[1772639165810,7.26431735,92.16,92.1,9.77]
[1772639166112,7.26431735,92.12,92.057,20.89534382]
[1772639166504,7.26431735,92.12,92.013,152.131]
[1772639166505,20.60173786,92.119,92.029,20.89534382]
[1772639167009,20.60173786,92.119,92.059,9.775]
[1772639167205,20.60173786,92.119,92.029,20.89534382]
[1772639167408,7.26431735,92.12,92.057,30.67034382]
[1772639167610,7.26431735,92.12,92.058,20.89534382]
[1772639168116,17.03231735,92.12,92.058,20.89534382]
[1772639168612,7.26431735,92.14,92.058,20.89534382]
[1772639169015,7.26431735,92.14,92.089,9.771]
[1772639169209,7.26431735,92.16,92.079,20.89534382]
[1772639169613,13.46934716,92.23,92.05,7.26431735]
[1772639169614,7.26431735,92.18,92.108,20.89534382]
[1772639170119,7.26431735,92.18,92.117,9.768]
[1772639170516,13.46934716,92.237,92.064,19.548]
[1772639170517,7.26431735,92.2,92.111,20.89534382]
[1772639171112,20.60173786,92.206,92.111,20.89534382]
[1772639171317,30.36073786,92.206,92.133,9.767]
[1772639171620,7.26431735,92.2,92.133,9.767]
[1772639172218,7.26431735,92.2,92.144,9.766]
[1772639172417,20.60173786,92.206,92.144,9.766]
[1772639172621,9.758,92.217,92.133,20.89534382]
[1772639173316,20.60173786,92.208,92.133,20.89534382]
[1772639173614,161.79426666,92.261,92.133,20.89534382]
[1772639173615,20.60173786,92.199,92.133,20.89534382]
[1772639174018,30.36173786,92.199,92.134,9.767]
[1772639174321,20.60173786,92.199,92.134,9.767]
[1772639174518,20.60173786,92.197,92.111,20.89534382]
[1772639174818,20.60173786,92.219,92.111,20.89534382]
[1772639175012,7.26431735,92.24,92.179,9.762]
[1772639175410,20.60173786,92.241,92.159,20.89534382]
[1772639175614,20.60173786,92.241,92.179,9.762]
[1772639175817,27.86605521,92.24,92.159,20.89534382]
[1772639176016,20.60173786,92.239,92.159,20.89534382]
[1772639176218,20.60173786,92.235,92.169,9.763]
[1772639176510,7.26431735,92.26,92.159,20.89534382]
[1772639176710,9.755,92.242,92.176,9.762]
[1772639176911,20.60173786,92.239,92.159,20.89534382]
[1772639177516,10.07026666,92.285,92.159,20.89534382]
[1772639177517,7.26431735,92.26,92.159,20.89534382]
[1772639177719,20.60173786,92.259,92.159,20.89534382]
[1772639177917,7.26431735,92.24,92.159,20.89534382]
[1772639178222,27.86605521,92.24,92.159,20.89534382]
[1772639178821,124.0,92.27,92.15,7.26431735]
[1772639178822,9.754,92.252,92.175,19.6671211]
[1772639179012,7.26431735,92.26,92.175,19.6671211]
[1772639179215,20.51611447,92.262,92.175,19.6671211]
[1772639179423,20.51611447,92.284,92.212,19.6671211]
[1772639179821,20.51611447,92.279,92.19,19.6671211]
[1772639180018,20.51611447,92.259,92.19,19.6671211]
[1772639180218,20.51611447,92.259,92.161,19.6671211]
[1772639180818,9.755,92.247,92.17,9.763]
[1772639181018,7.26431735,92.28,92.17,9.763]
[1772639181019,20.51611447,92.239,92.17,9.763]
[1772639181214,9.756,92.238,92.17,9.763]
[1772639181813,20.51611447,92.239,92.18,9.762]
[1772639182013,20.51611447,92.239,92.161,19.6671211]
[1772639182220,7.26431735,92.26,92.161,19.6671211]
[1772639182422,9.754,92.258,92.185,9.761]
[1772639182623,9.754,92.258,92.182,19.6671211]
[1772639182915,9.751,92.283,92.214,9.758]
[1772639183426,30.47503117,92.267,92.181,21.17339437]
[1772639183725,20.72203117,92.267,92.181,21.17339437]
[1772639185127,20.72203117,92.267,92.194,9.76]
[1772639185328,20.72203117,92.267,92.181,21.17339437]
[1772639185625,20.72203117,92.267,92.205,9.759]
[1772639186028,20.72203117,92.267,92.181,21.17339437]
[1772639186328,9.753,92.266,92.195,9.76]
[1772639186826,20.72203117,92.267,92.181,21.17339437]
[1772639187327,7.26431735,92.28,92.181,21.17339437]
[1772639188125,17.01531735,92.28,92.208,21.17339437]
[1772639188627,20.72203117,92.312,92.208,21.17339437]
[1772639188823,20.72203117,92.312,92.221,21.17339437]
[1772639189221,20.72203117,92.309,92.221,21.17339437]
[1772639190320,20.72203117,92.309,92.24,9.755]
[1772639190321,9.75,92.296,92.24,9.755]
[1772639190526,20.72203117,92.296,92.221,21.17339437]
[1772639190920,20.72203117,92.296,92.231,9.756]
[1772639191125,20.72203117,92.296,92.221,21.17339437]
[1772639191530,20.72203117,92.289,92.199,21.17339437]
[1772639191725,9.753,92.267,92.199,21.17339437]
[1772639192332,20.72203117,92.293,92.211,21.17339437]
[1772639192726,20.72203117,92.289,92.171,21.17339437]
[1772639193028,20.72203117,92.289,92.197,9.76]
[1772639193229,7.26431735,92.28,92.197,9.76]
[1772639193424,20.72203117,92.259,92.191,21.17339437]
[1772639193626,20.72203117,92.279,92.191,21.17339437]
[1772639194228,20.72203117,92.279,92.208,9.759]
[1772639194930,7.26431735,92.26,92.167,21.17339437]
[1772639195131,20.72203117,92.239,92.167,21.17339437]
[1772639195530,20.72203117,92.239,92.141,21.17339437]
[1772639196237,20.72203117,92.239,92.174,21.17339437]
[1772639196428,20.72203117,92.261,92.174,21.17339437]
[1772639196629,20.72203117,92.261,92.181,21.17339437]
[1772639197127,20.72203117,92.289,92.181,21.17339437]
[1772639197631,9.752,92.27,92.203,21.17339437]
[1772639197929,20.72203117,92.289,92.203,21.17339437]
[1772639198334,20.72203117,92.289,92.205,9.759]
[1772639198531,20.72203117,92.289,92.182,21.17339437]
[1772639198729,20.72203117,92.269,92.182,21.17339437]
[1772639199237,9.754,92.251,92.193,9.76]
[1772639199434,20.72203117,92.269,92.182,21.17339437]
[1772639200727,7.26431735,92.29,92.225,9.757]
[1772639201035,20.72203117,92.292,92.201,21.17339437]
[1772639201236,20.72203117,92.289,92.201,21.17339437]
[1772639201737,20.72203117,92.31,92.221,21.17339437]
[1772639202238,19.492,92.334,92.221,21.17339437]
[1772639202239,20.72203117,92.299,92.221,21.17339437]
[1772639203331,20.72203117,92.299,92.2,21.17339437]
[1772639203635,19.496,92.311,92.2,21.17339437]
[1772639203636,20.72203117,92.279,92.2,21.17339437]
[1772639204037,9.753,92.268,92.207,9.759]
[1772639204241,9.753,92.268,92.2,21.17339437]
[1772639204242,20.72203117,92.279,92.2,21.17339437]
[1772639204543,9.751,92.286,92.228,9.757]
[1772639204842,20.72203117,92.299,92.22,21.17339437]
[1772639205140,27.98634852,92.32,92.221,21.17339437]
[1772639205338,27.98634852,92.32,92.241,21.17339437]
[1772639205339,20.72203117,92.32,92.241,21.17339437]
[1772639205638,20.72203117,92.32,92.229,21.17339437]
[1772639205639,20.72203117,92.319,92.229,21.17339437]
[1772639206142,20.72203117,92.299,92.229,21.17339437]
[1772639207437,9.751,92.278,92.229,21.17339437]
[1772639207840,10.07026666,92.347,92.229,21.17339437]
[1772639207841,20.72203117,92.344,92.229,21.17339437]
[1772639208036,20.72203117,92.344,92.251,21.17339437]
[1772639208440,20.72203117,92.344,92.264,9.753]
[1772639208640,20.72203117,92.344,92.251,21.17339437]
[1772639209442,9.745,92.343,92.28,9.751]
[1772639209641,20.72203117,92.344,92.275,19.57482378]
[1772639210641,9.745,92.336,92.275,19.57482378]
[1772639210839,20.72203117,92.344,92.275,19.57482378]
[1772639211239,20.72203117,92.344,92.278,19.57482378]
[1772639211846,21.23367893,92.366,92.296,19.57482378]
[1772639212046,19.97630934,92.447,92.296,19.57482378]
[1772639212047,21.23367893,92.389,92.296,19.57482378]
[1772639212342,21.23367893,92.421,92.328,19.57482378]
[1772639212544,21.23367893,92.419,92.328,19.57482378]
[1772639213146,9.738,92.403,92.328,19.57482378]
[1772639213347,21.23367893,92.419,92.328,19.57482378]
[1772639213537,21.23367893,92.399,92.303,19.57482378]
[1772639213741,9.74,92.383,92.309,19.57482378]
[1772639214143,21.23367893,92.392,92.259,161.34297146]
[1772639214348,151.586,92.345,92.177,78.75980905]
[1772639214548,151.615,92.328,92.177,78.75980905]
[1772639214743,9.755,92.248,92.177,78.75980905]
[1772639214944,7.2509056,92.3,92.191,78.76286274]
[1772639215246,7.2509056,92.27,92.191,78.76286274]
[1772639215441,9.755,92.248,92.191,78.76286274]
[1772639215747,7.2509056,92.25,92.191,78.76286274]
[1772639215943,9.757,92.226,92.151,78.76286274]
[1772639216339,7.2509056,92.25,92.173,78.81380537]
[1772639216638,7.2509056,92.24,92.173,78.81380537]
[1772639216837,7.2509056,92.24,92.175,13.12931171]
[1772639217042,7.2509056,92.27,92.175,78.81690428]
[1772639217248,7.2509056,92.25,92.175,78.81690428]
[1772639217640,7.2509056,92.25,92.181,13.12931171]
[1772639217838,9.756,92.232,92.181,13.12931171]
[1772639218040,9.756,92.232,92.184,13.12931171]
[1772639218242,7.2509056,92.25,92.175,78.81690428]
[1772639219351,7.2509056,92.23,92.131,78.9643875]
[1772639219647,7.2509056,92.23,92.135,78.9643875]
[1772639219843,9.76,92.201,92.135,78.9643875]
[1772639220043,9.76,92.201,92.145,78.9643875]
[1772639221044,9.758,92.213,92.145,78.9643875]
[1772639221237,9.758,92.213,92.057,10.60975612]
[1772639221238,7.2509056,92.25,92.151,78.9643875]
[1772639221648,151.664,92.297,92.171,78.9643875]
[1772639222045,9.756,92.238,92.176,78.9643875]
[1772639222240,7.2509056,92.24,92.176,78.9643875]
[1772639222647,7.2509056,92.22,92.154,78.9643875]
[1772639222848,151.735,92.255,92.154,78.9643875]
[1772639223147,7.2509056,92.22,92.154,78.9643875]
[1772639223344,7.2509056,92.2,92.11,7.2509056]
[1772639223951,9.76,92.2,92.131,13.12931171]
[1772639224142,9.76,92.2,92.11,7.2509056]
[1772639224346,7.2509056,92.22,92.11,7.2509056]
[1772639224550,7.2509056,92.18,92.09,7.2509056]
[1772639224753,7.2509056,92.18,92.006,152.143]
[1772639224754,7.2509056,92.16,92.07,7.2509056]
[1772639225143,9.765,92.152,92.07,7.2509056]
[1772639225349,7.2509056,92.18,92.07,7.2509056]
[1772639225350,7.2509056,92.18,92.071,71.3201412]
[1772639225645,7.2509056,92.18,92.076,71.3201412]
[1772639225846,7.2509056,92.18,92.091,71.3201412]
[1772639226051,7.2509056,92.2,92.111,71.62649864]
[1772639226252,7.2509056,92.22,92.111,71.62649864]
[1772639226648,7.2509056,92.22,92.12,71.62649864]
[1772639227044,7.2509056,92.22,92.129,71.63243957]
[1772639227652,7.2509056,92.2,92.129,71.63243957]
[1772639228048,19.51,92.245,92.041,152.085]
[1772639228049,7.2509056,92.22,92.135,71.70856484]
[1772639228546,7.2509056,92.2,92.135,71.70856484]
[1772639228750,9.763,92.171,92.135,71.70856484]
[1772639229349,9.764,92.161,92.1,7.2509056]
[1772639229554,7.2509056,92.18,92.101,71.71456189]
[1772639230355,7.2509056,92.16,92.079,71.80013965]
[1772639231152,7.2509056,92.16,92.08,13.12931171]
[1772639231354,7.2509056,92.16,92.024,71.80615281]
[1772639231554,7.2509056,92.12,92.024,71.80615281]
[1772639231754,7.2509056,92.14,92.041,71.80615281]
[1772639232256,7.2509056,92.14,92.058,71.81094205]
[1772639232457,7.2509056,92.14,92.061,71.81094205]
[1772639232658,7.2509056,92.18,92.097,71.81094205]
[1772639233152,151.734,92.255,92.125,71.81684186]